[Event "Titled Tuesday Blitz November 14 Early 2023"]
[White "mind1mover"]
[Black "Dowgird, Filip"]
[BlackFideId "1121235"]
[WhiteElo "2832"]
[BlackElo "2703"]
[Result "1/2-1/2"]
[Round "10"]
[TimeControl "180+1"]
[Date "2023.11.14"]
[WhiteClock "0:00:04"]
[BlackClock "0:00:10"]
[Board "33"]

1. Nf3 {[%clk 0:03:00]}  d6 {[%clk 0:03:00]} 2. d4 {[%clk 0:02:56]}  Bg4 {[%clk 0:03:00]} 3. g3 {[%clk 0:02:54]}  Bxf3 {[%clk 0:02:59]} 4. exf3 {[%clk 0:02:55]}  Nd7 {[%clk 0:03:00]} 5. c4 {[%clk 0:02:52]}  e5 {[%clk 0:02:59]} 6. Bg2 {[%clk 0:02:51]}  exd4 {[%clk 0:02:59]} 7. Qxd4 {[%clk 0:02:48]}  Ngf6 {[%clk 0:02:59]} 8. O-O {[%clk 0:02:41]}  Be7 {[%clk 0:02:59]} 9. f4 {[%clk 0:02:41]}  c6 {[%clk 0:02:59]} 10. Nc3 {[%clk 0:02:41]}  O-O {[%clk 0:02:59]} 11. b3 {[%clk 0:02:42]}  Qb6 {[%clk 0:02:59]} 12. Qd2 {[%clk 0:02:40]}  Rfe8 {[%clk 0:02:59]} 13. Bb2 {[%clk 0:02:35]}  a5 {[%clk 0:02:57]} 14. Rad1 {[%clk 0:02:28]}  Nc5 {[%clk 0:02:57]} 15. Qd4 {[%clk 0:02:23]}  Bf8 {[%clk 0:02:51]} 16. h3 {[%clk 0:02:14]}  a4 {[%clk 0:02:46]} 17. Nxa4 {[%clk 0:01:51]}  Nxa4 {[%clk 0:02:45]} 18. bxa4 {[%clk 0:01:52]}  Qxd4 {[%clk 0:02:31]} 19. Bxd4 {[%clk 0:01:52]}  Nd7 {[%clk 0:02:22]} 20. Rb1 {[%clk 0:01:50]}  Reb8 {[%clk 0:02:16]} 21. Bb6 {[%clk 0:01:26]}  Nc5 {[%clk 0:01:54]} 22. a5 {[%clk 0:01:18]}  Be7 {[%clk 0:01:44]} 23. Rfd1 {[%clk 0:01:13]}  Kf8 {[%clk 0:01:40]} 24. Bxc5 {[%clk 0:01:00]}  dxc5 {[%clk 0:01:40]} 25. Rd7 {[%clk 0:01:00]}  Rxa5 {[%clk 0:01:27]} 26. Rbxb7 {[%clk 0:00:59]}  Rxb7 {[%clk 0:01:27]} 27. Rxb7 {[%clk 0:00:59]}  Bf6 {[%clk 0:01:20]} 28. Bxc6 {[%clk 0:00:44]}  Rxa2 {[%clk 0:01:18]} 29. Bd5 {[%clk 0:00:44]}  Bd4 {[%clk 0:01:19]} 30. Rxf7+ {[%clk 0:00:43]}  Ke8 {[%clk 0:01:19]} 31. Rb7 {[%clk 0:00:35]}  Rxf2 {[%clk 0:01:10]} 32. Kh1 {[%clk 0:00:25]}  Rf1+ {[%clk 0:01:01]} 33. Kg2 {[%clk 0:00:17]}  Rf2+ {[%clk 0:01:01]} 34. Kh1 {[%clk 0:00:14]}  Rf1+ {[%clk 0:01:02]} 35. Kh2 {[%clk 0:00:15]}  Rf2+ {[%clk 0:01:01]} 36. Bg2 {[%clk 0:00:15]}  Rc2 {[%clk 0:01:01]} 37. h4 {[%clk 0:00:11]}  Rxc4 {[%clk 0:00:54]} 38. Kh3 {[%clk 0:00:12]}  Rc3 {[%clk 0:00:52]} 39. Be4 {[%clk 0:00:09]}  h6 {[%clk 0:00:51]} 40. h5 {[%clk 0:00:03]}  Kf8 {[%clk 0:00:48]} 41. Bd5 {[%clk 0:00:02]}  Ke8 {[%clk 0:00:42]} 42. Ra7 {[%clk 0:00:01]}  Kd8 {[%clk 0:00:40]} 43. Rf7 {[%clk 0:00:01]}  Ke8 {[%clk 0:00:39]} 44. Rc7 {[%clk 0:00:01]}  Re3 {[%clk 0:00:37]} 45. Rc6 {[%clk 0:00:01]}  Ra3 {[%clk 0:00:34]} 46. Rc7 {[%clk 0:00:01]}  Kd8 {[%clk 0:00:35]} 47. Rf7 {[%clk 0:00:01]}  Rc3 {[%clk 0:00:34]} 48. Rb7 {[%clk 0:00:02]}  c4 {[%clk 0:00:30]} 49. Rb4 {[%clk 0:00:02]}  Bf2 {[%clk 0:00:30]} 50. Rxc4 {[%clk 0:00:02]}  Rxg3+ {[%clk 0:00:30]} 51. Kh2 {[%clk 0:00:03]}  Rd3 {[%clk 0:00:28]} 52. Kg2 {[%clk 0:00:03]}  Rxd5 {[%clk 0:00:28]} 53. Kxf2 {[%clk 0:00:04]}  Rxh5 {[%clk 0:00:28]} 54. Kg3 {[%clk 0:00:04]}  Ke7 {[%clk 0:00:26]} 55. Ra4 {[%clk 0:00:04]}  Rd5 {[%clk 0:00:21]} 56. Ra7+ {[%clk 0:00:04]}  Rd7 {[%clk 0:00:21]} 57. Ra6 {[%clk 0:00:05]}  Rd6 {[%clk 0:00:18]} 58. Ra7+ {[%clk 0:00:05]}  Kf6 {[%clk 0:00:19]} 59. Ra3 {[%clk 0:00:05]}  Kg6 {[%clk 0:00:18]} 60. Rb3 {[%clk 0:00:05]}  Rf6 {[%clk 0:00:18]} 61. Ra3 {[%clk 0:00:05]}  Rf5 {[%clk 0:00:18]} 62. Ra6+ {[%clk 0:00:05]}  Kh5 {[%clk 0:00:17]} 63. Ra3 {[%clk 0:00:06]}  Rb5 {[%clk 0:00:17]} 64. Rc3 {[%clk 0:00:06]}  Kg6 {[%clk 0:00:13]} 65. Rc6+ {[%clk 0:00:06]}  Kh7 {[%clk 0:00:13]} 66. Rc3 {[%clk 0:00:07]}  Rf5 {[%clk 0:00:13]} 67. Rb3 {[%clk 0:00:07]}  Rf6 {[%clk 0:00:14]} 68. Ra3 {[%clk 0:00:07]}  Rg6+ {[%clk 0:00:15]} 69. Kh3 {[%clk 0:00:05]}  Rg1 {[%clk 0:00:15]} 70. Ra6 {[%clk 0:00:04]}  Rf1 {[%clk 0:00:13]} 71. Kg3 {[%clk 0:00:05]}  Rg1+ {[%clk 0:00:13]} 72. Kf2 {[%clk 0:00:05]}  Rg4 {[%clk 0:00:13]} 73. Kf3 {[%clk 0:00:06]}  h5 {[%clk 0:00:14]} 74. Ra5 {[%clk 0:00:03]}  Kh6 {[%clk 0:00:14]} 75. Ra6+ {[%clk 0:00:03]}  Rg6 {[%clk 0:00:13]} 76. Ra8 {[%clk 0:00:04]}  Rg1 {[%clk 0:00:13]} 77. Ra6+ {[%clk 0:00:02]}  g6 {[%clk 0:00:12]} 78. Ra8 {[%clk 0:00:03]}  Rf1+ {[%clk 0:00:12]} 79. Kg3 {[%clk 0:00:03]}  Rg1+ {[%clk 0:00:12]} 80. Kf2 {[%clk 0:00:03]}  Rb1 {[%clk 0:00:12]} 81. Kg3 {[%clk 0:00:03]}  Rb3+ {[%clk 0:00:12]} 82. Kg2 {[%clk 0:00:03]}  Rc3 {[%clk 0:00:09]} 83. Kf2 {[%clk 0:00:04]}  Rd3 {[%clk 0:00:08]} 84. Ke2 {[%clk 0:00:03]}  Rb3 {[%clk 0:00:07]} 85. Kf2 {[%clk 0:00:04]}  Kg7 {[%clk 0:00:07]} 86. Ra6 {[%clk 0:00:03]}  Rc3 {[%clk 0:00:07]} 87. Kg2 {[%clk 0:00:03]}  Kh6 {[%clk 0:00:06]} 88. Ra8 {[%clk 0:00:02]}  Kg7 {[%clk 0:00:06]} 89. Ra6 {[%clk 0:00:02]}  h4 {[%clk 0:00:07]} 90. Kh2 {[%clk 0:00:02]}  Kh6 {[%clk 0:00:07]} 91. Kg2 {[%clk 0:00:02]}  Kh5 {[%clk 0:00:07]} 92. Ra5+ {[%clk 0:00:02]}  Kg4 {[%clk 0:00:07]} 93. Rg5+ {[%clk 0:00:03]}  Kxf4 {[%clk 0:00:07]} 94. Rxg6 {[%clk 0:00:03]}  Rg3+ {[%clk 0:00:08]} 95. Rxg3 {[%clk 0:00:03]}  hxg3 {[%clk 0:00:08]} 96. Kg1 {[%clk 0:00:03]}  Kf3 {[%clk 0:00:09]} 97. Kf1 {[%clk 0:00:04]}  g2+ {[%clk 0:00:10]} 98. Kg1 {[%clk 0:00:04]}  Kg3 {[%clk 0:00:10]} 1/2-1/2


[Site "https://www.chess.com"]

[Event "Titled Tuesday Blitz November 14 Early 2023"]
[White "Narayanan, Srinath"]
[Black "Kuzhylnyi, Oleksandr"]
[WhiteFideId "5018420"]
[BlackFideId "34110500"]
[WhiteElo "2805"]
[BlackElo "2646"]
[Result "1-0"]
[Round "10"]
[TimeControl "180+1"]
[Date "2023.11.14"]
[WhiteClock "0:00:39"]
[BlackClock "0:00:23"]
[Board "35"]

1. e4 {[%clk 0:03:00]}  g6 {[%clk 0:02:59]} 2. d4 {[%clk 0:03:00]}  Bg7 {[%clk 0:03:00]} 3. Nc3 {[%clk 0:03:00]}  d6 {[%clk 0:03:01]} 4. Be3 {[%clk 0:03:01]}  a6 {[%clk 0:03:00]} 5. h4 {[%clk 0:02:59]}  Nf6 {[%clk 0:02:56]} 6. h5 {[%clk 0:02:56]}  Nxh5 {[%clk 0:02:53]} 7. Rxh5 {[%clk 0:02:56]}  gxh5 {[%clk 0:02:52]} 8. Qxh5 {[%clk 0:02:57]}  e6 {[%clk 0:02:40]} 9. Nf3 {[%clk 0:02:55]}  Qf6 {[%clk 0:02:36]} 10. Bd3 {[%clk 0:02:49]}  Qg6 {[%clk 0:02:19]} 11. Qh2 {[%clk 0:02:49]}  Nc6 {[%clk 0:02:17]} 12. e5 {[%clk 0:02:42]}  Qg4 {[%clk 0:02:16]} 13. O-O-O {[%clk 0:02:33]}  dxe5 {[%clk 0:02:07]} 14. dxe5 {[%clk 0:02:34]}  Bd7 {[%clk 0:02:02]} 15. Be2 {[%clk 0:01:38]}  Qb4 {[%clk 0:01:37]} 16. a3 {[%clk 0:01:14]}  Qa5 {[%clk 0:01:35]} 17. Qh4 {[%clk 0:01:12]}  Nxe5 {[%clk 0:01:17]} 18. Nxe5 {[%clk 0:01:00]}  Bxe5 {[%clk 0:01:18]} 19. Ne4 {[%clk 0:00:54]}  Rg8 {[%clk 0:00:46]} 20. Bc5 {[%clk 0:00:46]}  Bc6 {[%clk 0:00:23]} 21. Qe7# {[%clk 0:00:39]} 1-0


[Site "https://www.chess.com"]

[Event "Titled Tuesday Blitz November 14 Early 2023"]
[White "Sousa, Andre Ventura"]
[Black "Molina, Roberto Junio Brito"]
[WhiteFideId "1917617"]
[BlackFideId "2109450"]
[WhiteElo "2634"]
[BlackElo "2794"]
[Result "1-0"]
[Round "10"]
[TimeControl "180+1"]
[Date "2023.11.14"]
[WhiteClock "0:00:22"]
[BlackClock "0:00:00"]
[Board "40"]

1. e4 {[%clk 0:03:00]}  c6 {[%clk 0:02:59]} 2. d4 {[%clk 0:03:00]}  d5 {[%clk 0:02:59]} 3. e5 {[%clk 0:03:01]}  Bf5 {[%clk 0:02:58]} 4. Nf3 {[%clk 0:03:00]}  e6 {[%clk 0:02:57]} 5. Be2 {[%clk 0:03:00]}  Nd7 {[%clk 0:02:56]} 6. O-O {[%clk 0:02:59]}  Bg6 {[%clk 0:02:56]} 7. a4 {[%clk 0:02:57]}  Rc8 {[%clk 0:02:51]} 8. a5 {[%clk 0:02:56]}  a6 {[%clk 0:02:51]} 9. c3 {[%clk 0:02:52]}  Ne7 {[%clk 0:02:47]} 10. b4 {[%clk 0:02:52]}  Nf5 {[%clk 0:02:46]} 11. Nbd2 {[%clk 0:02:47]}  Be7 {[%clk 0:02:46]} 12. Ne1 {[%clk 0:02:44]}  O-O {[%clk 0:02:45]} 13. f4 {[%clk 0:02:40]}  Ne3 {[%clk 0:02:36]} 14. Qb3 {[%clk 0:02:40]}  Nxf1 {[%clk 0:02:34]} 15. Nxf1 {[%clk 0:02:40]}  f6 {[%clk 0:02:28]} 16. Ng3 {[%clk 0:02:37]}  fxe5 {[%clk 0:02:26]} 17. fxe5 {[%clk 0:02:38]}  Bg5 {[%clk 0:02:25]} 18. Bg4 {[%clk 0:02:36]}  Re8 {[%clk 0:02:08]} 19. Nf3 {[%clk 0:02:33]}  Bxc1 {[%clk 0:02:07]} 20. Rxc1 {[%clk 0:02:34]}  Qe7 {[%clk 0:02:07]} 21. h4 {[%clk 0:02:28]}  h6 {[%clk 0:02:05]} 22. h5 {[%clk 0:02:26]}  Bh7 {[%clk 0:02:03]} 23. Qd1 {[%clk 0:02:22]}  Rf8 {[%clk 0:02:02]} 24. Qd2 {[%clk 0:02:18]}  Rf7 {[%clk 0:02:00]} 25. Kh2 {[%clk 0:02:17]}  Rcf8 {[%clk 0:02:00]} 26. Kh3 {[%clk 0:02:17]}  Rf4 {[%clk 0:01:56]} 27. Ne2 {[%clk 0:02:01]}  R4f7 {[%clk 0:01:41]} 28. Ng3 {[%clk 0:01:57]}  Kh8 {[%clk 0:01:41]} 29. Rh1 {[%clk 0:01:57]}  Kg8 {[%clk 0:01:12]} 30. Re1 {[%clk 0:01:55]}  Qe8 {[%clk 0:01:10]} 31. Ne2 {[%clk 0:01:35]}  Bf5 {[%clk 0:01:07]} 32. Bxf5 {[%clk 0:01:32]}  Rxf5 {[%clk 0:01:08]} 33. Ng3 {[%clk 0:01:31]}  Rxf3 {[%clk 0:00:59]} 34. gxf3 {[%clk 0:01:30]}  Rxf3 {[%clk 0:01:00]} 35. Kg2 {[%clk 0:01:27]}  Qf7 {[%clk 0:00:57]} 36. Re3 {[%clk 0:01:21]}  Rf4 {[%clk 0:00:53]} 37. Qe2 {[%clk 0:01:17]}  Nf8 {[%clk 0:00:52]} 38. Rf3 {[%clk 0:01:13]}  g6 {[%clk 0:00:48]} 39. Qf2 {[%clk 0:01:08]}  Rxf3 {[%clk 0:00:44]} 40. Qxf3 {[%clk 0:01:09]}  Qxf3+ {[%clk 0:00:42]} 41. Kxf3 {[%clk 0:01:10]}  Kg7 {[%clk 0:00:38]} 42. Kg4 {[%clk 0:01:07]}  Nh7 {[%clk 0:00:35]} 43. hxg6 {[%clk 0:01:02]}  Kxg6 {[%clk 0:00:36]} 44. Nh5 {[%clk 0:01:03]}  Ng5 {[%clk 0:00:35]} 45. Nf4+ {[%clk 0:01:04]}  Kf7 {[%clk 0:00:35]} 46. Kh5 {[%clk 0:00:55]}  Ne4 {[%clk 0:00:35]} 47. Ne2 {[%clk 0:00:55]}  Kg7 {[%clk 0:00:34]} 48. Kg4 {[%clk 0:00:53]}  Nf2+ {[%clk 0:00:30]} 49. Kh5 {[%clk 0:00:51]}  Nd3 {[%clk 0:00:25]} 50. Ng3 {[%clk 0:00:42]}  Kh7 {[%clk 0:00:20]} 51. Ne2 {[%clk 0:00:42]}  Nf2 {[%clk 0:00:18]} 52. Nf4 {[%clk 0:00:40]}  Ne4 {[%clk 0:00:18]} 53. Nxe6 {[%clk 0:00:38]}  Nxc3 {[%clk 0:00:19]} 54. Nd8 {[%clk 0:00:38]}  Nb5 {[%clk 0:00:17]} 55. e6 {[%clk 0:00:37]}  Nc7 {[%clk 0:00:11]} 56. e7 {[%clk 0:00:35]}  Kg7 {[%clk 0:00:11]} 57. Ne6+ {[%clk 0:00:32]}  Kf6 {[%clk 0:00:09]} 58. Nxc7 {[%clk 0:00:32]}  Kxe7 {[%clk 0:00:10]} 59. Kxh6 {[%clk 0:00:27]}  Kf6 {[%clk 0:00:08]} 60. Ne8+ {[%clk 0:00:26]}  Kf5 {[%clk 0:00:08]} 61. Nd6+ {[%clk 0:00:26]}  Kf4 {[%clk 0:00:09]} 62. Nxb7 {[%clk 0:00:27]}  Ke4 {[%clk 0:00:10]} 63. Nc5+ {[%clk 0:00:27]}  Kxd4 {[%clk 0:00:10]} 64. Nxa6 {[%clk 0:00:28]}  Kc4 {[%clk 0:00:11]} 65. Nc5 {[%clk 0:00:24]}  Kb5 {[%clk 0:00:06]} 66. Nd3 {[%clk 0:00:20]}  d4 {[%clk 0:00:05]} 67. Kg5 {[%clk 0:00:21]}  Kc4 {[%clk 0:00:05]} 68. a6 {[%clk 0:00:20]}  Kxd3 {[%clk 0:00:05]} 69. a7 {[%clk 0:00:21]}  Kc2 {[%clk 0:00:05]} 70. a8=Q {[%clk 0:00:22]}  d3 {[%clk 0:00:00]} 71. Qxc6+ {[%clk 0:00:22]} 1-0


[Site "https://www.chess.com"]

[Event "Titled Tuesday Blitz November 14 Early 2023"]
[White "Suyarov, Mukhammadzokhid"]
[Black "Stark, Lars"]
[WhiteFideId "14210495"]
[BlackFideId "4676386"]
[WhiteElo "2779"]
[BlackElo "2632"]
[Result "1-0"]
[Round "10"]
[TimeControl "180+1"]
[Date "2023.11.14"]
[WhiteClock "0:00:19"]
[BlackClock "0:00:00"]
[Board "41"]

1. e4 {[%clk 0:03:00]}  e6 {[%clk 0:02:59]} 2. d4 {[%clk 0:02:59]}  d5 {[%clk 0:03:00]} 3. Nc3 {[%clk 0:03:00]}  Nf6 {[%clk 0:03:00]} 4. e5 {[%clk 0:03:00]}  Nfd7 {[%clk 0:03:01]} 5. Nce2 {[%clk 0:03:00]}  c5 {[%clk 0:03:00]} 6. c3 {[%clk 0:03:01]}  cxd4 {[%clk 0:03:01]} 7. cxd4 {[%clk 0:03:01]}  f6 {[%clk 0:03:01]} 8. Nf4 {[%clk 0:03:01]}  Bb4+ {[%clk 0:03:00]} 9. Bd2 {[%clk 0:02:59]}  Qb6 {[%clk 0:03:00]} 10. exf6 {[%clk 0:02:55]}  Nxf6 {[%clk 0:02:58]} 11. Nf3 {[%clk 0:02:49]}  O-O {[%clk 0:02:56]} 12. Nd3 {[%clk 0:02:07]}  Bd6 {[%clk 0:02:44]} 13. Be2 {[%clk 0:01:50]}  Nc6 {[%clk 0:02:42]} 14. Be3 {[%clk 0:01:47]}  Ng4 {[%clk 0:02:35]} 15. O-O {[%clk 0:01:24]}  Nxe3 {[%clk 0:02:34]} 16. fxe3 {[%clk 0:01:25]}  Bd7 {[%clk 0:02:31]} 17. Qe1 {[%clk 0:01:24]}  Rae8 {[%clk 0:02:25]} 18. Qh4 {[%clk 0:01:23]}  e5 {[%clk 0:02:19]} 19. Qh5 {[%clk 0:01:03]}  g6 {[%clk 0:01:04]} 20. Qh6 {[%clk 0:00:57]}  Rf5 {[%clk 0:00:32]} 21. Ng5 {[%clk 0:00:48]}  Re7 {[%clk 0:00:28]} 22. g4 {[%clk 0:00:38]}  Rxf1+ {[%clk 0:00:22]} 23. Rxf1 {[%clk 0:00:37]}  Qd8 {[%clk 0:00:11]} 24. Nxh7 {[%clk 0:00:36]}  Rxh7 {[%clk 0:00:11]} 25. Qxg6+ {[%clk 0:00:36]}  Rg7 {[%clk 0:00:12]} 26. Qxd6 {[%clk 0:00:36]}  exd4 {[%clk 0:00:12]} 27. Qxd5+ {[%clk 0:00:36]}  Kh8 {[%clk 0:00:12]} 28. Ne5 {[%clk 0:00:19]}  Be8 {[%clk 0:00:10]} 29. Rf8+ {[%clk 0:00:19]}  Kh7 {[%clk 0:00:09]} 30. Bd3+ {[%clk 0:00:19]}  Kh6 {[%clk 0:00:00]} 31. Rh8+ {[%clk 0:00:19]} 1-0


[Site "https://www.chess.com"]

[Event "Titled Tuesday Blitz November 14 Early 2023"]
[White "Panchenko, Dmitry"]
[Black "Vlassov, Nikolai"]
[WhiteFideId "4169158"]
[BlackFideId "4103360"]
[WhiteElo "2744"]
[BlackElo "2613"]
[Result "1-0"]
[Round "10"]
[TimeControl "180+1"]
[Date "2023.11.14"]
[WhiteClock "0:00:20"]
[BlackClock "0:00:25"]
[Board "43"]

1. e4 {[%clk 0:03:00]}  Nc6 {[%clk 0:02:53]} 2. Nf3 {[%clk 0:03:00]}  d5 {[%clk 0:02:52]} 3. exd5 {[%clk 0:02:58]}  Qxd5 {[%clk 0:02:53]} 4. Be2 {[%clk 0:02:25]}  Bg4 {[%clk 0:02:52]} 5. h3 {[%clk 0:02:25]}  Bh5 {[%clk 0:02:51]} 6. d4 {[%clk 0:02:19]}  O-O-O {[%clk 0:02:51]} 7. c4 {[%clk 0:02:17]}  Qd7 {[%clk 0:02:36]} 8. g4 {[%clk 0:02:14]}  Bg6 {[%clk 0:02:29]} 9. d5 {[%clk 0:02:15]}  Nb4 {[%clk 0:02:29]} 10. O-O {[%clk 0:02:15]}  e6 {[%clk 0:02:19]} 11. a3 {[%clk 0:02:04]}  Na6 {[%clk 0:02:14]} 12. Nc3 {[%clk 0:02:04]}  exd5 {[%clk 0:02:07]} 13. cxd5 {[%clk 0:02:02]}  Nc5 {[%clk 0:02:06]} 14. Bf4 {[%clk 0:02:00]}  Bd6 {[%clk 0:01:50]} 15. Qd4 {[%clk 0:01:48]}  Kb8 {[%clk 0:01:39]} 16. Bc4 {[%clk 0:01:33]}  h5 {[%clk 0:01:34]} 17. Bxd6 {[%clk 0:01:29]}  cxd6 {[%clk 0:01:32]} 18. b4 {[%clk 0:01:25]}  hxg4 {[%clk 0:01:30]} 19. hxg4 {[%clk 0:01:25]}  Ne4 {[%clk 0:01:26]} 20. Nxe4 {[%clk 0:01:08]}  Qxg4+ {[%clk 0:01:25]} 21. Ng3 {[%clk 0:01:09]}  Qxf3 {[%clk 0:01:25]} 22. Rfe1 {[%clk 0:00:55]}  Nf6 {[%clk 0:01:13]} 23. Bf1 {[%clk 0:00:49]}  Qxd5 {[%clk 0:01:08]} 24. Rad1 {[%clk 0:00:35]}  Qxd4 {[%clk 0:01:04]} 25. Rxd4 {[%clk 0:00:36]}  Rhe8 {[%clk 0:01:03]} 26. Red1 {[%clk 0:00:35]}  d5 {[%clk 0:01:03]} 27. Bg2 {[%clk 0:00:35]}  Re5 {[%clk 0:01:01]} 28. Nf1 {[%clk 0:00:32]}  Rg5 {[%clk 0:00:51]} 29. f4 {[%clk 0:00:30]}  Rg4 {[%clk 0:00:42]} 30. Ne3 {[%clk 0:00:29]}  Rg3 {[%clk 0:00:41]} 31. Kf2 {[%clk 0:00:29]}  Rxe3 {[%clk 0:00:34]} 32. Kxe3 {[%clk 0:00:30]}  Re8+ {[%clk 0:00:34]} 33. Kf2 {[%clk 0:00:30]}  Ng4+ {[%clk 0:00:33]} 34. Kg1 {[%clk 0:00:26]}  Re3 {[%clk 0:00:28]} 35. Rxd5 {[%clk 0:00:24]}  Rxa3 {[%clk 0:00:24]} 36. Rd8+ {[%clk 0:00:20]}  Kc7 {[%clk 0:00:24]} 37. R1d7+ {[%clk 0:00:19]}  Kb6 {[%clk 0:00:25]} 38. Rxb7+ {[%clk 0:00:20]}  Ka6 {[%clk 0:00:25]} 39. Rd6# {[%clk 0:00:20]} 1-0


[Site "https://www.chess.com"]

[Event "Titled Tuesday Blitz November 14 Early 2023"]
[White "Sattarov, Bobir"]
[Black "Tikhonov, Viacheslav"]
[WhiteFideId "14203081"]
[BlackFideId "44196407"]
[WhiteElo "2741"]
[BlackElo "2601"]
[Result "1-0"]
[Round "10"]
[TimeControl "180+1"]
[Date "2023.11.14"]
[WhiteClock "0:00:53"]
[BlackClock "0:00:01"]
[Board "45"]

1. e4 {[%clk 0:03:00]}  c5 {[%clk 0:02:59]} 2. Nc3 {[%clk 0:03:00]}  g6 {[%clk 0:03:00]} 3. Nge2 {[%clk 0:02:58]}  Bg7 {[%clk 0:02:59]} 4. d4 {[%clk 0:02:59]}  cxd4 {[%clk 0:03:00]} 5. Nxd4 {[%clk 0:03:00]}  Nc6 {[%clk 0:03:01]} 6. Be3 {[%clk 0:03:00]}  Nf6 {[%clk 0:03:02]} 7. Nxc6 {[%clk 0:03:01]}  bxc6 {[%clk 0:03:02]} 8. e5 {[%clk 0:03:01]}  Nd5 {[%clk 0:03:02]} 9. Nxd5 {[%clk 0:03:01]}  cxd5 {[%clk 0:03:03]} 10. Qxd5 {[%clk 0:03:01]}  Rb8 {[%clk 0:03:04]} 11. O-O-O {[%clk 0:03:02]}  Bb7 {[%clk 0:03:04]} 12. Qc5 {[%clk 0:02:59]}  O-O {[%clk 0:02:58]} 13. Bd4 {[%clk 0:02:59]}  Bc6 {[%clk 0:02:56]} 14. f4 {[%clk 0:02:53]}  Re8 {[%clk 0:02:48]} 15. Rd2 {[%clk 0:02:51]}  Qc8 {[%clk 0:02:32]} 16. Bc4 {[%clk 0:02:38]}  Qb7 {[%clk 0:02:12]} 17. Rg1 {[%clk 0:02:33]}  a6 {[%clk 0:02:00]} 18. Bb3 {[%clk 0:02:30]}  Rbc8 {[%clk 0:01:54]} 19. Qb6 {[%clk 0:02:22]}  Qa8 {[%clk 0:01:23]} 20. g3 {[%clk 0:02:22]}  a5 {[%clk 0:01:18]} 21. a4 {[%clk 0:02:22]}  Bd5 {[%clk 0:01:02]} 22. Bxd5 {[%clk 0:01:55]}  Qxd5 {[%clk 0:01:02]} 23. Kb1 {[%clk 0:01:55]}  d6 {[%clk 0:00:44]} 24. Bc3 {[%clk 0:01:47]}  Qc4 {[%clk 0:00:39]} 25. Qb3 {[%clk 0:01:46]}  dxe5 {[%clk 0:00:36]} 26. fxe5 {[%clk 0:01:43]}  Qc5 {[%clk 0:00:29]} 27. Rf1 {[%clk 0:01:43]}  e6 {[%clk 0:00:29]} 28. Bd4 {[%clk 0:01:35]}  Qc7 {[%clk 0:00:17]} 29. Qe3 {[%clk 0:01:23]}  Rb8 {[%clk 0:00:16]} 30. b3 {[%clk 0:01:23]}  Qc6 {[%clk 0:00:15]} 31. Bb2 {[%clk 0:01:22]}  Red8 {[%clk 0:00:13]} 32. Qf2 {[%clk 0:01:15]}  Qc7 {[%clk 0:00:11]} 33. Rd6 {[%clk 0:01:13]}  Rxd6 {[%clk 0:00:05]} 34. exd6 {[%clk 0:01:14]}  Qd7 {[%clk 0:00:06]} 35. Bxg7 {[%clk 0:01:14]}  Kxg7 {[%clk 0:00:07]} 36. Qf6+ {[%clk 0:01:14]}  Kg8 {[%clk 0:00:08]} 37. Rd1 {[%clk 0:01:12]}  Qxa4 {[%clk 0:00:04]} 38. d7 {[%clk 0:00:55]}  Rxb3+ {[%clk 0:00:05]} 39. cxb3 {[%clk 0:00:56]}  Qxb3+ {[%clk 0:00:06]} 40. Kc1 {[%clk 0:00:56]}  Qe3+ {[%clk 0:00:05]} 41. Rd2 {[%clk 0:00:56]}  Qa3+ {[%clk 0:00:03]} 42. Kd1 {[%clk 0:00:56]}  Qb3+ {[%clk 0:00:02]} 43. Ke2 {[%clk 0:00:54]}  Qc4+ {[%clk 0:00:03]} 44. Kf2 {[%clk 0:00:52]}  Qc5+ {[%clk 0:00:03]} 45. Qd4 {[%clk 0:00:52]}  Qa3 {[%clk 0:00:01]} 46. d8=Q+ {[%clk 0:00:52]}  Qf8 {[%clk 0:00:01]} 47. Qh8+ {[%clk 0:00:52]}  Kxh8 {[%clk 0:00:01]} 48. Qxf8# {[%clk 0:00:53]} 1-0


[Site "https://www.chess.com"]

[Event "Titled Tuesday Blitz November 14 Early 2023"]
[White "Tasev, Dejan"]
[Black "Aradhya, Garg"]
[WhiteFideId "936618"]
[BlackFideId "25006746"]
[WhiteElo "2587"]
[BlackElo "2730"]
[Result "1/2-1/2"]
[Round "10"]
[TimeControl "180+1"]
[Date "2023.11.14"]
[WhiteClock "0:00:26"]
[BlackClock "0:00:18"]
[Board "47"]

1. e4 {[%clk 0:03:00]}  e5 {[%clk 0:03:00]} 2. Nf3 {[%clk 0:03:00]}  Nc6 {[%clk 0:03:00]} 3. Bc4 {[%clk 0:03:00]}  Nf6 {[%clk 0:03:00]} 4. d3 {[%clk 0:03:01]}  h6 {[%clk 0:03:01]} 5. Nc3 {[%clk 0:03:01]}  Bb4 {[%clk 0:03:01]} 6. Bd2 {[%clk 0:02:59]}  O-O {[%clk 0:03:00]} 7. h3 {[%clk 0:02:59]}  Bxc3 {[%clk 0:02:59]} 8. Bxc3 {[%clk 0:02:58]}  d5 {[%clk 0:02:59]} 9. exd5 {[%clk 0:02:56]}  Nxd5 {[%clk 0:03:00]} 10. Bd2 {[%clk 0:02:55]}  Nb6 {[%clk 0:02:43]} 11. Bb3 {[%clk 0:02:54]}  a5 {[%clk 0:02:42]} 12. a3 {[%clk 0:02:52]}  Re8 {[%clk 0:02:42]} 13. O-O {[%clk 0:02:52]}  a4 {[%clk 0:02:41]} 14. Ba2 {[%clk 0:02:52]}  Be6 {[%clk 0:02:42]} 15. Re1 {[%clk 0:02:45]}  Bxa2 {[%clk 0:02:41]} 16. Rxa2 {[%clk 0:02:45]}  f5 {[%clk 0:02:34]} 17. Bc3 {[%clk 0:02:36]}  Qd5 {[%clk 0:02:22]} 18. Ra1 {[%clk 0:02:34]}  e4 {[%clk 0:02:16]} 19. dxe4 {[%clk 0:02:32]}  fxe4 {[%clk 0:02:16]} 20. Nh2 {[%clk 0:02:28]}  Qf5 {[%clk 0:02:09]} 21. Qg4 {[%clk 0:02:21]}  Qxg4 {[%clk 0:02:09]} 22. Nxg4 {[%clk 0:02:22]}  Nd5 {[%clk 0:02:08]} 23. Bd2 {[%clk 0:02:18]}  Nd4 {[%clk 0:02:07]} 24. Rac1 {[%clk 0:02:13]}  Ra6 {[%clk 0:02:07]} 25. Ne3 {[%clk 0:02:13]}  Nf6 {[%clk 0:02:05]} 26. Bc3 {[%clk 0:02:11]}  c5 {[%clk 0:02:02]} 27. Rcd1 {[%clk 0:02:04]}  Rd8 {[%clk 0:01:55]} 28. Rd2 {[%clk 0:02:00]}  Rad6 {[%clk 0:01:51]} 29. Red1 {[%clk 0:01:57]}  Kf7 {[%clk 0:01:40]} 30. Kf1 {[%clk 0:01:46]}  Ke6 {[%clk 0:01:37]} 31. Nc4 {[%clk 0:01:41]}  Rd5 {[%clk 0:01:09]} 32. Nb6 {[%clk 0:01:37]}  R5d6 {[%clk 0:00:54]} 33. Nc4 {[%clk 0:01:32]}  Rd5 {[%clk 0:00:44]} 34. Nb6 {[%clk 0:01:27]}  R5d6 {[%clk 0:00:45]} 35. Nxa4 {[%clk 0:01:27]}  b6 {[%clk 0:00:45]} 36. b4 {[%clk 0:01:25]}  Nb5 {[%clk 0:00:41]} 37. Rxd6+ {[%clk 0:01:21]}  Rxd6 {[%clk 0:00:41]} 38. Rxd6+ {[%clk 0:01:21]}  Kxd6 {[%clk 0:00:41]} 39. Bxf6 {[%clk 0:01:13]}  gxf6 {[%clk 0:00:42]} 40. Nxb6 {[%clk 0:01:12]}  Nxa3 {[%clk 0:00:42]} 41. bxc5+ {[%clk 0:01:12]}  Kxc5 {[%clk 0:00:43]} 42. Nd7+ {[%clk 0:01:11]}  Kd4 {[%clk 0:00:40]} 43. Nxf6 {[%clk 0:01:12]}  Nxc2 {[%clk 0:00:40]} 44. Ke2 {[%clk 0:01:08]}  e3 {[%clk 0:00:39]} 45. fxe3+ {[%clk 0:00:53]}  Nxe3 {[%clk 0:00:38]} 46. Kf3 {[%clk 0:00:54]}  Nf5 {[%clk 0:00:26]} 47. Kf4 {[%clk 0:00:52]}  Ng7 {[%clk 0:00:25]} 48. Ng4 {[%clk 0:00:50]}  h5 {[%clk 0:00:25]} 49. Nf6 {[%clk 0:00:50]}  Kd3 {[%clk 0:00:23]} 50. h4 {[%clk 0:00:36]}  Ke2 {[%clk 0:00:23]} 51. g4 {[%clk 0:00:35]}  hxg4 {[%clk 0:00:23]} 52. Kxg4 {[%clk 0:00:36]}  Ke3 {[%clk 0:00:19]} 53. Kg5 {[%clk 0:00:36]}  Kf3 {[%clk 0:00:19]} 54. Nd7 {[%clk 0:00:30]}  Ne6+ {[%clk 0:00:18]} 55. Kg6 {[%clk 0:00:28]}  Kg4 {[%clk 0:00:17]} 56. h5 {[%clk 0:00:27]}  Nf4+ {[%clk 0:00:17]} 57. Kh6 {[%clk 0:00:26]}  Nxh5 {[%clk 0:00:18]} 1/2-1/2


[Site "https://www.chess.com"]